bitfinex/quotes_SOLUSD_20241113
["timestamp","ask_amount","ask_price","bid_price","bid_amount"]
[1731505918983,1.17362278,213.18,213.0,5.0]
[1731505919187,0.1,213.33,213.0,5.0]
[1731505919188,6.162303,213.23,213.02,0.1]
[1731505919380,1.17325328,213.22,213.04,0.1]
[1731505919588,1.17325328,213.22,213.06,0.1]
[1731505919880,6.17333179,213.31,213.09,0.1]
[1731505920088,6.17333179,213.31,213.12,0.1]
[1731505920272,6.17333179,213.31,213.09,12.3708]
[1731505920473,0.12549,213.3,213.09,12.3708]
[1731505920778,1.17297119,213.29,213.11,0.1]
[1731505921101,1.874957,213.36,213.14,0.1]
[1731505921394,1.17273045,213.35,213.16,0.1]
[1731505921797,1.17273045,213.35,213.1,20.0]
[1731505921798,1.17273045,213.35,213.11,0.1]
[1731505921995,1.17273045,213.35,213.16,0.1]
[1731505922200,1.2983774,213.34,213.1,20.0]
[1731505922511,1.3983774,213.34,213.09,12.2708]
[1731505922680,1.2983774,213.34,213.09,12.2708]
[1731505923202,5.9858774,213.34,213.09,12.2708]
[1731505923694,1.2983774,213.34,213.09,12.2708]
[1731505923897,6.1857774,213.34,213.08,31.6285]
[1731505924096,6.1857774,213.34,213.02,0.1]
[1731505924398,0.12549,213.32,213.01,0.1]
[1731505924585,1.17331432,213.31,213.04,0.1]
[1731505924788,1.17331432,213.31,213.1,0.1]
[1731505925096,1.17331432,213.31,213.0,17.3671]
[1731505925097,0.12549,213.3,213.02,0.1]
[1731505925293,0.12549,213.28,213.02,0.1]
[1731505925498,0.12549,213.26,213.02,0.1]
[1731505925794,1.17330102,213.25,213.1,0.1]
[1731505925995,1.17330102,213.25,213.01,0.1]
[1731505925996,1.17295853,213.37,213.12,0.1]
[1731505926201,6.05965853,213.37,213.06,0.1]
[1731505926407,0.12549,213.36,213.08,0.1]
[1731505926705,0.1,213.33,213.02,0.1]
[1731505926879,1.17344436,213.32,213.08,0.1]
[1731505927087,1.17278503,213.41,213.1,0.1]
[1731505927395,0.1,213.4,213.08,0.1]
[1731505927594,1.1728502,213.39,213.08,0.1]
[1731505927795,1.1728502,213.39,213.1,0.1]
[1731505927997,1.1728502,213.39,213.09,0.12549]
[1731505928196,1.1728502,213.39,213.18,0.1]
[1731505928405,1.1728502,213.39,213.13,0.1]
[1731505928706,0.12549,213.37,213.05,24.102374]
[1731505928883,0.12549,213.35,213.04,43.776884]
[1731505929086,0.12549,213.33,213.04,20.0]
[1731505929396,1.17291107,213.32,213.17,20.0]
[1731505929592,1.87506,213.43,213.17,20.0]
[1731505929593,1.17256978,213.42,213.17,20.0]
[1731505929790,5.85826978,213.42,213.17,20.0]
[1731505929984,0.12549,213.41,213.05,37.81241409]
[1731505930201,1.17281972,213.4,213.11,0.1]
[1731505930411,1.17281972,213.4,213.09,20.0]
[1731505930711,0.12549,213.39,213.06,12.3694]
[1731505930909,1.17279454,213.38,213.06,12.3694]
[1731505931086,0.1,213.3,213.0,5.0]
[1731505931280,0.12549,213.28,213.0,5.0]
[1731505931507,23.776884,213.26,213.0,5.0]
[1731505931693,23.776884,213.24,213.0,5.0]
[1731505931895,23.776884,213.22,213.0,5.0]
[1731505932199,1.17334126,213.21,213.01,0.1]
[1731505932392,1.17315742,213.37,213.07,0.1]
[1731505932786,1.17315742,213.37,213.04,0.12549]
[1731505932787,1.17315742,213.37,213.09,0.1]
[1731505933278,1.17315742,213.37,213.1,0.1]
[1731505933605,0.1,213.34,212.96,0.1]
[1731505933797,0.22549,213.29,212.93,31.0815]
[1731505934001,37.35083838,213.3,212.93,31.0815]
[1731505934002,0.12549,213.27,212.93,31.0815]
[1731505934185,0.1,213.23,212.97,0.1666889]
[1731505934387,0.12549,213.19,212.97,0.1666889]
[1731505934588,23.902374,213.15,212.97,0.1666889]
[1731505934896,23.776884,213.13,212.97,0.1666889]
[1731505935094,0.1,213.19,212.97,0.1666889]
[1731505935095,23.776884,213.11,212.97,0.1666889]
[1731505935407,0.12549,213.09,212.97,0.1666889]
[1731505935585,23.902374,213.07,212.97,0.1666889]
[1731505935906,23.902374,213.05,212.97,0.1666889]
[1731505936203,23.902374,213.03,212.97,0.1666889]
[1731505936400,23.902374,213.01,212.97,0.1666889]
[1731505936608,0.12549,212.99,212.97,0.1666889]
[1731505936790,1.17459132,212.98,212.97,0.1666889]
[1731505936993,0.1,213.2,212.97,0.1666889]
[1731505936994,1.17415774,213.16,212.97,0.1666889]
[1731505937199,1.17415774,213.16,212.97,13.0090889]
[1731505937885,1.17373031,213.15,212.98,20.0]
[1731505938086,1.17349318,213.28,212.98,20.0]
[1731505938287,0.12549,213.27,212.99,0.12549]
[1731505938510,1.17328436,213.26,213.02,20.0]
[1731505938813,1.17328436,213.26,213.0,20.0]
[1731505939195,1.17328436,213.26,212.98,20.0]
[1731505939601,1.17328436,213.26,212.99,23.776884]
[1731505939791,1.17328436,213.26,213.02,20.0]
[1731505939989,0.12549,213.24,213.04,20.0]
[1731505940199,1.956,213.32,213.04,20.0]
[1731505940200,1.17317283,213.23,213.04,20.0]
[1731505940600,1.17317283,213.23,213.06,20.0]
[1731505940798,1.17302528,213.34,213.06,20.0]
[1731505941104,1.17302528,213.34,213.08,20.0]
[1731505941602,1.17302528,213.34,212.97,18.55750299]
[1731505941603,37.35083838,213.24,212.97,0.1666889]
[1731505941795,38.52389072,213.23,212.97,0.1666889]
[1731505942001,1.17305234,213.23,212.97,0.1666889]
[1731505942383,0.12549,213.22,212.97,0.1666889]
[1731505942604,0.12549,213.2,212.97,0.1666889]
[1731505942910,23.902374,213.18,212.97,0.1666889]
[1731505943093,23.902374,213.16,212.97,0.1666889]
[1731505943404,23.902374,213.14,212.97,0.1666889]
[1731505943587,23.776884,213.12,212.97,0.1666889]
[1731505943788,1.17365305,213.11,212.98,0.12549]
[1731505944100,1.17353746,213.32,213.0,20.0]
[1731505945204,37.35083838,213.41,213.08,20.0]
[1731505945510,1.17278231,213.4,213.13,23.902374]
[1731505945801,1.17278231,213.4,213.08,0.1]
[1731505945802,1.17278231,213.4,213.19,43.902374]
[1731505946006,1.17278231,213.4,213.19,20.0]
[1731505946315,1.17216519,213.39,213.23,0.12549]
[1731505946493,11.13099793,213.44,213.25,20.0]
[1731505946494,1.17183577,213.42,213.25,20.0]
[1731505947004,1.17183577,213.42,213.19,43.776884]
[1731505947382,0.12549,213.41,213.18,13.2941]
[1731505947589,0.12549,213.39,213.18,13.2941]
[1731505947791,0.12549,213.37,213.18,13.2941]
[1731505947989,18.740805,213.43,213.18,13.2941]
[1731505947990,0.12549,213.35,213.18,13.2941]
[1731505948195,23.776884,213.33,213.18,13.2941]
[1731505948400,23.902374,213.31,213.03,0.1]
[1731505948689,1.17297607,213.3,213.04,5.64841409]
[1731505948990,23.902374,213.29,213.04,5.64841409]
[1731505949299,1.17281936,213.28,213.05,0.12549]
[1731505949508,23.902374,213.27,213.04,5.54841409]
[1731505949806,1.17293836,213.26,213.04,0.1]
[1731505950103,1.17293836,213.26,213.04,0.32549]
[1731505950306,1.17277398,213.41,213.07,0.1]
[1731505950505,1.17277398,213.41,213.13,0.22549]
[1731505950805,1.17277398,213.41,213.17,20.32549]
[1731505950986,1.17277398,213.41,213.21,0.12549]
[1731505951183,1.17277398,213.41,213.22,23.776884]
[1731505951382,1.17200136,213.43,213.28,23.776884]
[1731505951595,1.17165875,213.61,213.33,23.776884]
[1731505951897,37.35083838,213.59,213.36,32.6607]
[1731505952088,1.1717542,213.58,213.36,32.6607]
[1731505952415,1.1717542,213.58,213.37,20.0]
[1731505953205,1.17149797,213.57,213.37,20.0]
[1731505953710,0.12549,213.56,213.37,20.0]
[1731505953886,23.776884,213.54,213.36,32.6607]
[1731505954092,1.17169362,213.55,213.36,32.6607]
[1731505954093,1.17142779,213.53,213.37,20.0]
[1731505954302,1.17126696,213.6,213.39,20.0]
[1731505955103,19.90074796,213.6,213.41,20.0]
[1731505955409,1.17092766,213.59,213.43,20.0]
[1731505955793,1.17092766,213.59,213.37,20.0]
[1731505956100,1.17092766,213.59,213.38,23.776884]
[1731505956294,1.17092766,213.59,213.41,20.0]
[1731505956500,1.17102063,213.7,213.43,20.0]
[1731505956696,18.725348,213.62,213.43,20.0]
[1731505957002,1.17099486,213.61,213.37,20.1]
[1731505957304,1.17099486,213.61,213.36,32.7607]
[1731505957305,18.725338,213.7,213.47,0.12549]
[1731505957505,0.5469794,213.83,213.46,23.876884]
[1731505957506,1.17041217,213.69,213.5,23.776884]
[1731505957703,18.716645,213.72,213.51,20.0]
[1731505958009,1.17050312,213.71,213.51,20.0]
[1731505958212,1.17050312,213.71,213.45,0.22549]
[1731505958395,1.17050312,213.71,213.47,20.12549]
[1731505958591,1.17050312,213.71,213.51,20.12549]
[1731505958796,1.17026361,213.82,213.55,20.12549]
[1731505959005,1.17026361,213.82,213.59,43.776884]
[1731505959196,1.17026361,213.82,213.6,0.12549]
[1731505959395,18.711951,213.77,213.59,20.0]
[1731505959596,1.17004768,213.76,213.59,20.0]
[1731505959806,1.17004768,213.76,213.62,0.12549]
[1731505960002,1.1698401,213.82,213.63,20.0]
[1731505960717,1.1698401,213.82,213.61,20.12549]
[1731505960898,1.1698401,213.82,213.58,13.2478]
[1731505960899,1.6198154,213.82,213.63,20.12549]
[1731505961109,0.12549,213.81,213.63,20.0]
[1731505961413,0.12549,213.79,213.58,13.2478]
[1731505961615,0.12549,213.77,213.58,13.2478]
[1731505961914,0.12549,213.75,213.58,13.2478]
[1731505962215,1.17033898,213.74,213.58,13.2478]
[1731505962514,23.902374,213.73,213.58,13.2478]
[1731505962726,23.776884,213.71,213.58,13.2478]
[1731505963010,23.776884,213.69,213.58,13.2478]
[1731505963205,1.17056122,213.68,213.58,13.2478]
[1731505963405,1.17056122,213.68,213.54,32.0671]
[1731505963406,23.776884,213.67,213.54,32.0671]
[1731505963606,23.776884,213.65,213.54,32.0671]
[1731505963800,0.12549,213.62,213.48,12.5183]
[1731505963997,23.776884,213.6,213.48,12.5183]
[1731505964212,1.17102192,213.59,213.48,12.5183]
[1731505964410,23.776884,213.74,213.48,12.5183]
[1731505964614,23.776884,213.72,213.48,12.5183]
[1731505964813,23.776884,213.7,213.48,12.5183]
[1731505964997,1.17055152,213.69,213.49,0.12549]
[1731505965195,1.17055152,213.69,213.48,12.5183]
[1731505965196,1.17060246,213.68,213.48,12.5183]
[1731505965523,37.45083838,213.77,213.48,12.5183]
[1731505965811,0.12549,213.75,213.48,12.5183]
[1731505966017,1.1707549,213.74,213.48,12.5183]
[1731505966213,0.12549,213.72,213.48,12.5183]
[1731505966416,5.37366416,213.77,213.48,12.5183]
[1731505966417,23.902374,213.7,213.48,12.5183]
[1731505966731,23.902374,213.68,213.48,12.5183]
[1731505967019,23.902374,213.66,213.48,12.5183]
[1731505967196,0.12549,213.64,213.48,12.5183]
[1731505967399,0.4499753,213.82,213.53,0.12549]
[1731505967612,1.17019434,213.81,213.55,23.902374]
[1731505967818,1.17019434,213.81,213.54,20.0]
[1731505968696,0.12549,213.79,213.49,20.0]
[1731505968912,0.12549,213.77,213.49,20.0]
[1731505969116,0.12549,213.75,213.49,20.0]
[1731505969301,0.12549,213.73,213.49,20.0]
[1731505969505,23.902374,213.71,213.49,20.0]
[1731505969703,23.902374,213.69,213.5,0.12549]
[1731505969907,1.17065433,213.68,213.52,0.12549]
[1731505970103,1.17042211,213.81,213.53,20.0]
[1731505970304,0.12549,213.77,213.53,20.0]
[1731505970508,0.12549,213.75,213.48,12.5183]
[1731505970726,2.056,213.8,213.48,12.5183]
[1731505970727,0.12549,213.73,213.48,12.5183]
[1731505970899,0.12549,213.73,213.16,312.0]
[1731505970900,37.35083838,213.67,213.38,12.0013]
[1731505971105,37.35083838,213.65,213.38,12.0013]
[1731505971428,23.776884,213.63,213.38,12.0013]
[1731505971719,23.776884,213.61,213.38,12.0013]
[1731505971899,23.776884,213.59,213.38,12.0013]
[1731505972099,23.902374,213.49,213.19,0.1]
[1731505972295,1.17209809,213.48,213.21,0.1]
[1731505972505,0.12549,213.51,213.19,0.1]
[1731505972714,23.902374,213.49,213.19,0.1]
[1731505972908,1.17198714,213.48,213.23,0.1]
[1731505973105,1.17198714,213.48,213.27,0.1]
[1731505973412,1.17198714,213.48,213.14,4.61963632]
[1731505973413,37.35083838,213.53,213.21,18.833167]
[1731505973621,23.776884,213.5,213.21,0.1]
[1731505973922,0.12549,213.48,213.24,0.1]
[1731505974230,1.17170836,213.47,213.22,0.1]
[1731505974721,23.776884,213.46,213.19,0.1]
[1731505974901,23.776884,213.46,213.13,25.52689847]
[1731505974902,1.17208349,213.45,213.17,0.1]
[1731505975310,1.17208349,213.45,213.19,0.1]
[1731505975504,1.17208349,213.45,213.29,0.1]
[1731505975717,1.17140226,213.52,213.29,0.1]
[1731505975914,1.17140226,213.52,213.24,0.12549]
[1731505976206,1.17140226,213.52,213.22,0.1]
[1731505976411,0.12549,213.51,213.2,20.1]
[1731505976609,1.1718309,213.5,213.22,0.1]
[1731505976806,1.1718309,213.5,213.22,20.0]
[1731505977024,23.776884,213.49,213.23,0.12549]
[1731505977207,1.17180061,213.48,213.23,0.12549]
[1731505977706,1.17180061,213.48,213.22,0.22549]
[1731505977905,1.17180061,213.48,213.24,0.1]
[1731505978121,0.12549,213.57,213.23,0.1]
[1731505978307,61.12772238,213.58,213.23,0.1]
[1731505978308,23.902374,213.55,213.23,0.1]
[1731505978517,23.902374,213.53,213.23,0.1]
[1731505978820,1.1716545,213.52,213.27,0.1]
[1731505979126,1.17144503,213.61,213.38,20.0]
[1731505979428,1.17144503,213.61,213.4,20.0]
[1731505979720,1.17144503,213.61,213.44,20.0]
[1731505980320,1.17144503,213.61,213.36,20.0]
[1731505980623,1.17144503,213.61,213.42,20.0]
[1731505980815,1.17107539,213.6,213.47,0.12549]
[1731505981021,0.12549,213.69,213.48,20.0]
[1731505981206,1.17091801,213.68,213.53,0.12549]
[1731505981404,1.17091801,213.68,213.55,0.12549]
[1731505981610,1.17040274,213.67,213.56,20.0]
[1731505981826,1.17052318,213.74,213.58,20.0]
[1731505982033,1.17052318,213.74,213.62,20.0]
[1731505982323,0.4499753,213.75,213.67,0.12549]
[1731505982526,0.4499753,213.75,213.54,30.1489]
[1731505984231,18.699262,213.91,213.77,0.12549]
[1731505984415,1.1692709,213.9,213.77,0.12549]
[1731505984625,1.16906608,213.96,213.8,20.0]
[1731505985215,1.16906608,213.96,213.78,20.0]
[1731505985527,1.16906608,213.96,213.78,20.12549]
[1731505986115,1.16906608,213.96,213.76,20.0]
[1731505986309,0.12549,213.95,213.76,20.0]
[1731505986514,0.12549,213.93,213.76,20.0]
[1731505986812,1.16959443,213.92,213.76,20.0]
[1731505987013,23.776884,213.91,213.76,20.0]
[1731505987207,1.16959446,213.9,213.75,31.7648]
[1731505987728,1.16952877,213.96,213.76,0.12549]
[1731505988231,5.99886888,213.96,213.76,0.12549]
[1731505988429,1.16952877,213.96,213.81,0.1]
[1731505988608,0.4463115,213.97,213.79,0.2]
[1731505988808,0.4463115,213.97,213.78,43.776884]
[1731505989005,0.4463115,213.97,213.79,0.1]
[1731505989228,0.4463115,213.97,213.79,0.12549]
[1731505990313,0.4463115,213.97,213.82,0.1]
[1731505990538,0.4463115,213.97,213.78,43.776884]
[1731505990539,0.4463115,213.97,213.86,0.12549]
[1731505990828,1.16837676,214.16,213.88,43.902374]
[1731505991131,1.16837676,214.16,213.88,44.002374]
[1731505991429,1.16837676,214.16,213.97,0.1]
[1731505991617,0.4463115,214.18,214.02,43.902374]
[1731505992413,1.16786411,214.17,213.89,31.9386]
[1731505992723,37.35083838,214.12,213.92,12.0463]
[1731505992928,37.35083838,214.1,213.92,12.0463]
[1731505993112,1.16878994,214.09,213.93,0.12549]
[1731505993314,1.16878994,214.09,213.92,12.0463]
[1731505993529,23.776884,214.08,213.92,12.0463]
[1731505993835,1.16876708,214.07,213.92,12.0463]
[1731505994059,23.776884,214.06,213.92,12.0463]
[1731505994224,37.35083838,214.03,213.69,31.8453]
[1731505994425,23.776884,214.04,213.69,31.8453]
[1731505994426,23.776884,213.98,213.69,31.8453]
[1731505994620,23.776884,213.96,213.69,31.8453]
[1731505994940,4.6692,214.17,213.81,0.1]
[1731505995112,37.35083838,214.2,213.81,0.22549]
[1731505995430,0.12549,214.11,213.82,0.12549]
[1731505995643,37.35083838,214.1,213.82,0.12549]
[1731505995812,37.35083838,214.1,213.84,20.0]
[1731505996015,37.35083838,214.13,213.84,20.0]
[1731505996225,37.35083838,214.15,213.87,23.776884]
[1731505996438,37.35083838,214.17,213.9,20.12549]
[1731505996624,37.35083838,214.17,213.89,23.776884]
[1731505996625,0.4463115,214.18,213.94,20.12549]
[1731505996822,0.4463115,214.18,213.96,20.0]
[1731505997022,0.4463115,214.18,213.97,23.902374]
[1731505997223,0.4463115,214.18,213.99,0.12549]
[1731505997630,0.4463115,214.18,213.96,20.12549]
[1731505999021,37.35083838,214.13,213.95,31.2513]
[1731505999225,37.35083838,214.11,213.95,31.2513]
[1731505999430,23.776884,214.1,213.95,31.2513]
[1731505999639,0.4463115,214.18,213.96,0.12549]
[1731506000143,0.4463115,214.18,213.98,0.12549]
[1731506000437,0.4463115,214.18,213.98,23.902374]
[1731506000639,0.4463115,214.18,213.99,20.0]
[1731506001020,0.4463115,214.18,214.01,20.12549]
[1731506001244,0.4463115,214.18,214.03,20.12549]
[1731506001823,0.4463115,214.18,214.0,20.12549]
[1731506002142,0.4463115,214.18,214.04,20.0]
[1731506002527,0.4463115,214.18,214.05,0.12549]
[1731506003026,0.4463115,214.18,214.01,23.902374]
[1731506003226,0.4463115,214.18,214.05,0.12549]
[1731506003829,0.4463115,214.18,214.01,23.776884]
[1731506004130,0.4463115,214.18,214.04,20.0]
[1731506004330,0.4463115,214.18,214.05,0.12549]
[1731506004532,0.4463115,214.18,213.98,20.0]
[1731506004928,0.4463115,214.18,213.99,0.12549]
[1731506005837,0.4463115,214.18,213.99,23.902374]
[1731506006035,0.4463115,214.18,214.01,0.12549]
[1731506006221,0.4463115,214.18,214.01,23.902374]
[1731506006431,0.4463115,214.18,214.02,20.0]
[1731506006624,0.4463115,214.18,213.97,12.5547]
[1731506007741,0.4463115,214.18,213.98,0.12549]
[1731506007936,0.4463115,214.18,213.97,12.5547]
[1731506008244,0.4463115,214.18,213.98,0.12549]
[1731506008643,0.4463115,214.18,214.0,23.902374]
[1731506008844,0.4463115,214.18,214.04,0.12549]
[1731506009067,0.4463115,214.18,214.06,0.12549]
[1731506009634,0.4463115,214.18,214.0,20.0]
[1731506009829,0.4463115,214.18,214.04,20.12549]
[1731506010032,0.4463115,214.18,214.08,0.12549]
[1731506010232,0.4463115,214.18,214.1,20.12549]
[1731506010843,0.4463115,214.18,214.09,30.1987]
[1731506011754,0.4463115,214.18,214.1,0.12549]
[1731506011958,0.4463115,214.18,214.09,30.1987]
[1731506012145,0.4463115,214.18,214.1,20.0]
[1731506012632,0.4463115,214.18,214.11,0.12549]
[1731506013051,37.35083838,214.39,214.11,0.12549]
[1731506013238,37.35083838,214.39,214.13,20.12549]
[1731506013556,18.663237,214.39,214.13,20.12549]
[1731506014230,18.663237,214.39,214.16,23.776884]
[1731506014561,18.663237,214.39,214.17,20.0]
[1731506014851,18.663237,214.39,214.13,20.0]
[1731506015153,0.4376805,214.4,214.2,23.902374]
[1731506015342,0.4376805,214.4,214.22,0.12549]
[1731506015537,0.4376805,214.4,214.21,20.0]
[1731506015730,0.4376805,214.4,214.14,0.2]
[1731506016056,0.4376805,214.4,214.13,20.0]
[1731506016057,0.4376805,214.4,214.22,0.12549]
[1731506016252,0.4376805,214.4,214.24,20.12549]
[1731506018253,0.4376805,214.4,214.29,0.12549]
[1731506018842,0.4376805,214.4,214.24,20.0]
[1731506019152,18.649691,214.54,214.3,20.12549]
[1731506019331,37.35083838,214.63,214.36,20.12549]
[1731506019536,11.6451,214.69,214.36,20.12549]
[1731506019537,37.35083838,214.59,214.36,20.12549]
[1731506019757,37.35083838,214.61,214.36,20.12549]
[1731506019957,37.35083838,214.59,214.36,20.12549]
[1731506020146,37.35083838,214.61,214.36,20.12549]
[1731506020345,37.35083838,214.59,214.36,20.12549]
[1731506020548,37.35083838,214.59,214.35,43.6224]
[1731506020549,37.35083838,214.55,214.35,43.6224]
[1731506020750,37.35083838,214.61,214.35,43.6224]
[1731506020751,37.35083838,214.57,214.35,43.6224]
[1731506021050,23.776884,214.56,214.35,43.6224]
[1731506021357,18.648317,214.61,214.36,20.12549]
[1731506021543,37.35083838,214.53,214.35,43.6224]
[1731506021858,37.35083838,214.55,214.35,43.6224]
[1731506022237,0.12549,214.54,214.35,43.6224]
[1731506022460,37.35083838,214.46,214.35,43.6224]
[1731506022638,37.35083838,214.46,214.26,12.4115]
[1731506022835,23.776884,214.45,214.26,12.4115]
[1731506023041,37.35083838,214.5,214.27,0.12549]
[1731506023244,37.35083838,214.54,214.27,0.12549]
[1731506023545,37.35083838,214.5,214.27,20.12549]
[1731506024359,37.35083838,214.42,214.26,12.4115]
[1731506024549,37.35083838,214.4,214.26,12.4115]
[1731506024937,61.12772238,214.48,214.27,0.12549]
[1731506025154,37.35083838,214.52,214.27,0.12549]
[1731506025361,37.35083838,214.5,214.27,0.12549]
[1731506025563,37.35083838,214.48,214.27,0.12549]
[1731506025755,37.35083838,214.48,214.27,20.12549]
[1731506025952,37.35083838,214.48,214.27,0.12549]
[1731506026559,37.35083838,214.46,214.26,12.4115]
[1731506026761,37.35083838,214.43,214.26,12.4115]
[1731506027056,37.35083838,214.37,214.26,12.4115]
[1731506027239,23.776884,214.36,214.26,12.4115]
[1731506027437,37.35083838,214.35,214.25,32.4427]
[1731506027643,23.776884,214.36,214.25,32.4427]
[1731506027859,37.35083838,214.35,214.25,32.4427]
[1731506028166,4.56125122,214.44,214.25,32.4427]
[1731506028349,37.35083838,214.4,214.25,32.4427]
[1731506028656,37.35083838,214.36,214.25,32.4427]
[1731506029053,37.35083838,214.38,214.25,32.4427]
[1731506029559,23.776884,214.37,214.25,32.4427]
[1731506030245,23.776884,214.35,214.25,32.4427]
[1731506030452,23.776884,214.33,214.16,12.4797]
[1731506030666,23.776884,214.31,214.16,12.4797]
[1731506030957,23.776884,214.35,214.16,12.4797]
[1731506031345,23.776884,214.37,214.16,12.4797]
[1731506031581,0.12549,214.36,214.16,12.4797]
[1731506031756,23.776884,214.35,214.16,12.4797]
[1731506031950,0.12549,214.34,214.16,12.4797]
[1731506032152,0.12549,214.32,214.16,12.4797]
[1731506032541,37.35083838,214.28,214.16,12.4797]
[1731506032743,23.776884,214.23,214.07,12.8548]
[1731506033162,37.35083838,214.28,214.07,12.8548]
[1731506033362,0.1,214.27,214.07,12.8548]
[1731506033862,37.35083838,214.26,214.07,12.8548]
[1731506034074,0.22549,214.23,214.07,12.8548]
[1731506034440,0.1,214.22,214.07,12.8548]
[1731506035268,28.570374,214.23,214.07,12.8548]
[1731506035442,0.1,214.22,214.07,12.8548]
[1731506035642,28.570374,214.23,214.07,12.8548]
[1731506035844,23.776884,214.25,214.07,12.8548]
[1731506036150,37.35083838,214.28,214.07,12.8548]
[1731506036557,0.12549,214.27,214.07,12.8548]
[1731506037160,0.22549,214.27,214.07,12.8548]
[1731506037355,4.79259,214.27,214.07,12.8548]
[1731506037945,0.12549,214.25,214.07,12.8548]
[1731506038147,0.22549,214.21,214.07,12.8548]
[1731506038346,23.902374,214.21,214.07,12.8548]
[1731506038763,0.12549,214.21,214.07,12.8548]
[1731506040055,5.22059629,214.25,214.07,12.8548]
[1731506040056,0.1,214.24,214.07,12.8548]
[1731506040262,42.0120896,214.23,214.07,12.8548]
[1731506040472,23.776884,214.22,214.07,12.8548]
[1731506040672,0.12549,214.21,214.07,12.8548]
[1731506040841,23.776884,214.2,214.07,12.8548]
[1731506041047,2.00567318,214.25,214.07,12.8548]
[1731506041247,4.6675,214.25,214.07,12.8548]
[1731506041748,161.4,214.26,214.07,12.8548]
[1731506041955,161.4,214.38,214.08,0.12549]
[1731506042264,203.41553838,214.38,214.12,20.0]
[1731506042560,37.45083838,214.32,214.08,20.0]
[1731506042761,0.1,214.33,214.07,12.8548]
[1731506042762,37.45083838,214.26,214.07,12.8548]
[1731506042968,0.12549,214.23,214.07,12.8548]
[1731506043146,0.12549,214.18,214.07,12.8548]
[1731506043344,0.12549,214.16,214.07,12.8548]
[1731506043553,0.12549,214.16,214.05,31.0378]
[1731506043766,161.52549,214.16,214.05,31.0378]
[1731506043958,23.776884,214.15,214.05,31.0378]
[1731506044163,61.12772238,214.15,214.05,31.0378]
[1731506044550,65.79742238,214.15,214.05,31.0378]
[1731506044962,37.35083838,214.13,214.05,31.0378]
[1731506045161,23.776884,214.12,214.05,31.0378]
[1731506045357,0.12549,214.11,214.05,31.0378]
[1731506045562,23.902374,214.05,213.95,32.717]
[1731506045753,23.776884,214.03,213.95,32.717]
[1731506046270,37.35083838,214.0,213.9,12.1611]
[1731506046586,0.12549,213.96,213.9,12.1611]
[1731506046754,23.776884,213.97,213.9,12.1611]
[1731506047371,0.12549,213.94,213.9,12.1611]
[1731506047570,23.902374,213.9,213.84,0.4645092]
[1731506047874,61.25321238,213.85,213.84,0.4645092]
[1731506048083,61.35321238,213.85,213.84,0.4645092]
[1731506048257,71.23505989,213.85,213.84,0.4645092]
[1731506048454,104.02464705,213.85,213.84,0.4645092]
[1731506048668,104.02464705,213.85,213.42,0.1]
[1731506048669,0.1,213.76,213.52,12.263]
[1731506048857,37.35083838,213.72,213.52,12.263]
[1731506050670,23.776884,213.71,213.52,12.263]
[1731506051063,23.776884,213.74,213.52,12.263]
[1731506051669,42.57143467,213.82,213.53,20.0]
[1731506051966,37.35083838,213.82,213.53,20.0]
[1731506052469,37.35083838,213.82,213.62,44.8775]
[1731506052862,0.12549,213.81,213.62,44.8775]
[1731506053067,42.57143467,213.82,213.62,44.8775]
[1731506053969,5.22059629,213.82,213.62,44.8775]
[1731506054268,37.35083838,213.84,213.62,44.8775]
[1731506054269,37.35083838,213.86,213.63,43.776884]
[1731506054474,42.57143467,213.9,213.64,0.12549]
[1731506054773,18.706871,213.88,213.64,0.12549]
[1731506054988,161.4,213.9,213.64,0.12549]